Cogmind - Beta 13 @@@ ROGUE MODE // 2024.04.30 @ 11:32:23 Player: Oldman Pu Result: Destroyed by 9N-57X(R) with Subdweller Machine Gun Performance ------------- Evolutions (0) 0 Regions Visited (2) 400 Robots Destroyed (19) 95 Value Destroyed (448) 448 Prototype IDs (0) 0 Alien Tech Used (0) 0 Bonus (0) 0 TOTAL SCORE: 943 Bonus ------- None Cogmind --------- Core Integrity 0/250 Matter 278/300 Energy 200/200 System Corruption 2% Temperature Cool (0) Movement Rolling (110) Location -10/Subcaves Parts ------- > --- POWER (1) -------- Subdweller Power Source > --- PROPULSION (2) --- Subdweller Monowheel Subdweller Monowheel > --- UTILITY (2) ------ Improved Heat Sink Large Storage Unit > --- WEAPON (2) ------- Particle Gun Light Assault Rifle > --- INVENTORY (15) --- Ion Engine Ion Engine Compact Wheel High-capacity Matter Pod (135) Scrap Shield Peak State ------------ > --- POWER ------------ Subdweller Power Source > --- PROPULSION ------- Subdweller Monowheel Subdweller Monowheel > --- UTILITY ---------- Improved Heat Sink Large Storage Unit > --- WEAPON ----------- Particle Gun Light Assault Rifle > --- INVENTORY -------- Ion Engine Ion Engine Compact Wheel High-capacity Matter Pod Scrap Shield [Rating: 13] Favorites ----------- Power Ion Engine Engine Ion Engine Propulsion Wheel Wheel Wheel Utility Large Storage Unit Device Improved Heat Sink Storage Large Storage Unit Protection Light Armor Plating Weapon Assault Rifle Energy Gun Particle Gun Energy Cannon Beam Cannon Ballistic Gun Assault Rifle Build | -11 -10 -10 ------- Run | Yrd Mat Sub Slots Evolved . | . . . Power . | . . . Propulsion . | . . . Utility . | . . . Weapon . | . . . Parts Attached 23 | 6 12 5 Power 4 | 1 2 1 Engine 4 | 1 2 1 Core . | . . . Reactor . | . . . Propulsion 6 | 2 2 2 Treads . | . . . Leg . | . . . Wheel 6 | 2 2 2 Hover . | . . . Flight . | . . . Utility 5 | 1 3 1 Device 1 | . . 1 Storage 3 | 1 2 . Processor . | . . . Hackware . | . . . Protection 1 | . 1 . Artifact . | . . . Weapon 8 | 2 5 1 Energy Gun 2 | . 2 . Energy Cannon 1 | . 1 . Ballistic Gun 5 | 2 2 1 Ballistic Cannon . | . . . Launcher . | . . . Special Weapon . | . . . Impact Weapon . | . . . Slashing Weapon . | . . . Piercing Weapon . | . . . Special Melee Weapon . | . . . Unidentified Prototypes . | . . . Parts Lost 7 | . 4 3 Power 1 | . . 1 Propulsion 2 | . 2 . Utility 1 | . . 1 Weapon 3 | . 2 1 Highest Loss Streak 3 | . 2 3 To Critical Strikes . | . . . Average Slot Usage (%) 95 | . 96 89 Engine 13 | . 14 11 Wheel 24 | . 25 22 Device 1 | . . 10 Storage 18 | . 19 14 Protection 7 | . 8 4 Energy Gun 2 | . . 14 Energy Cannon 8 | . 8 4 Ballistic Gun 17 | . 18 9 Naked Turns . | . . . Heaviest Build 34 | 13 34 34 Greatest Support 40 | 20 26 40 Greatest Overweight (x) 2 | . 2 2 Average Overweight (x) . | . . . Largest Inventory Capacity 15 | 8 15 15 Average Capacity 11 | 6 11 15 Most Carried 8 | 1 8 6 Average Carried 4 | . 5 5 Final Capacity 15 | 8 15 15 Final Carried 6 | 1 5 6 Class Distribution -------------------- 91% | Mutant 8% | Scavenger-Mutant Dominant Class ---------------- Mutant | -10/Materials Scavenger-Mutant | -10/Subcaves Resources | -11 -10 -10 ----------- Run | Yrd Mat Sub Matter Collected 778 | 196 498 84 Remotely . | . . . Salvage Created 701 | . 617 84 Parts 47 | . 39 8 Haulers Intercepted 2 | . 2 . Recyclers Shooed . | . . . Parts Field Recycled . | . . . Retrieved Matter . | . . . Parts Self-Destructed 1 | . . 1 Prevented . | . . . Kills | -11 -10 -10 ------- Run | Yrd Mat Sub Combat Hostiles Destroyed 12 | . 10 2 Guns 10 | . 8 2 Cannons 2 | . 2 . Classes Destroyed 7 | . 6 1 Hauler 2 | . 2 . Recycler 1 | . 1 . Operator 1 | . 1 . Watcher 3 | . 3 . Swarmer 3 | . 3 . Grunt 7 | . 7 . Subdweller 2 | . . 2 Best Kill Streak 3 | . 3 2 Combat Bots Only 3 | . 3 2 Max Kills in Single Turn 1 | . 1 1 Gunslinging . | . . . Exploded . | . . . Melee . | . . . Uniques/NPCs Destroyed . | . . . Combat | -11 -10 -10 -------- Run | Yrd Mat Sub Hostile Shots Fired 89 | . 67 22 Missed 21 | . 18 3 Damage Taken 1055 | . 547 508 Core 268 | . 83 185 Absorbed by Shields . | . . . Core Remaining (%) 100 | 100 . . Volleys Fired 70 | . 58 12 Largest 2 | . 2 2 Hottest 125 | . 125 125 Shots Fired 136 | . 114 22 Gun 108 | . 90 18 Cannon 28 | . 24 4 Launcher . | . . . Special . | . . . Kinetic 94 | . 88 6 Thermal 42 | . 26 16 Explosive . | . . . Electromagnetic . | . . . Robot Hit Streak 21 | . 7 21 Robot Miss Streak 4 | . 4 . Penetration Max . | . . . Secondary Targets . | . . . Shots Hit Robots 84 | . 65 19 Core Hits 31 | . 26 5 Critical Kills 1 | . 1 . Critical Parts Destroyed 1 | . 1 . Critical Strikes 4 | . 2 2 Burn 2 | . . 2 Destroy 2 | . 2 . Melee Attacks . | . . . Impact . | . . . Slashing . | . . . Piercing . | . . . Sneak Attacks . | . . . Combat Hostiles . | . . . Follow-up Attacks . | . . . Damage Inflicted 1196 | . 929 267 Guns 865 | . 668 197 Cannons 331 | . 261 70 Explosions . | . . . Melee . | . . . Ramming . | . . . Kinetic 667 | . 637 30 Thermal 529 | . 292 237 Explosive . | . . . Electromagnetic . | . . . Impact . | . . . Slashing . | . . . Piercing . | . . . Highest Corruption 2 | . 2 2 Average Corruption 1 | . 1 2 Corruption Purged . | . . . Corruption Blocked . | . . . Effects 3 | . 2 1 Data Loss (minor) 2 | . 2 . Alerts 1 | . . 1 Overload Shots . | . . . Overflow Damage . | . . . Projectiles . | . . . Explosions . | . . . Melee . | . . . Knockbacks . | . . . Impact . | . . . Kinetic . | . . . Secondary . | . . . Self-Inflicted Damage . | . . . Shots . | . . . Rammed . | . . . Targets Rammed . | . . . Kicked . | . . . Crushed . | . . . Highest Temperature 175 | . 175 51 Average Temperature 65 | . 69 18 Received Heat Transfer 378 | . 228 150 Siege Activations . | . . . Robots Corrupted . | . . . Combat Hostiles . | . . . Parts Fried . | . . . Impact Corruptions . | . . . Robots Melted . | . . . Combat Hostiles . | . . . Parts Melted 2 | . . 2 Heat Transferred 1332 | . 629 703 Parts Sabotaged . | . . . Parts Stolen . | . . . Parts Stripped . | . . . Power Chain Reactions . | . . . Alert | -11 -10 -10 ------- Run | Yrd Mat Sub Peak Influence 203 | . 203 . Initial . | . . . Average 62 | . 65 . Maximum Alert Level 1 | . 1 . Low Security (%) 97 | 100 96 . Level 1 2 | . 3 . Level 2 . | . . . Level 3 . | . . . Level 4 . | . . . Level 5 . | . . . High Security . | . . . Max Security . | . . . Squads Dispatched 2 | . 2 . Investigation 1 | . 1 . Extermination . | . . . Reinforcement 1 | . 1 . Assault . | . . . Garrison . | . . . Intercept . | . . . Searches Triggered . | . . . Construction Impeded . | . . . Haulers Reinforced . | . . . Active Scanning Responses . | . . . Cargo Convoy Interrupts . | . . . Stealth | -11 -10 -10 --------- Run | Yrd Mat Sub Distress Signals . | . . . Communications Jammed . | . . . Distress Signals . | . . . Times Spotted 21 | . 17 4 Peak Tracking Total 3 | . 3 2 Tactical Retreats . | . . . Traps | -11 -10 -10 ------- Run | Yrd Mat Sub Traps Triggered 3 | . 3 . Indirectly . | . . . Trap Hack Attempts . | . . . Triggered . | . . . Disarmed . | . . . Reprogrammed . | . . . Reused . | . . . Traps Extracted . | . . . Installed . | . . . Triggered . | . . . Machines | -11 -10 -10 ---------- Run | Yrd Mat Sub Machines Disabled . | . . . Max in Single Turn . | . . . Machines Repaired . | . . . Machines Dismantled . | . . . Machines Sabotaged . | . . . Overloaded Fab Kills . | . . . Hacking | -11 -10 -10 --------- Run | Yrd Mat Sub Machines Accessed 5 | . 5 . Terminals 5 | . 5 . Fabricators . | . . . Repair Stations . | . . . Recycling Units . | . . . Scanalyzers . | . . . Garrison Access . | . . . Total Hacks 12 | . 12 . Successful 9 | . 9 . Failed 3 | . 3 . Catastrophic 1 | . 1 . Database Lockouts . | . . . Manual . | . . . Terminals 12 | . 12 . Fabricators . | . . . Repair Stations . | . . . Recycling Units . | . . . Scanalyzers . | . . . Garrison Access . | . . . Terminal Hacks 9 | . 9 . Record 5 | . 5 . Robot Analysis 1 | . 1 . Branch Access Points 1 | . 1 . Alert Level 1 | . 1 . Locate Traps 1 | . 1 . Fabricator Hacks . | . . . Repair Station Hacks . | . . . Recycling Unit Hacks . | . . . Scanalyzer . | . . . Garrison Access Hacks . | . . . Unauthorized Hacks . | . . . Terminals . | . . . Fabricators . | . . . Repair Stations . | . . . Recycling Units . | . . . Scanalyzers . | . . . Garrison Access . | . . . Data Cores Recovered 1 | . 1 . Used . | . . . Hacking Detections 4 | . 4 . Full Trace Events . | . . . Feedback Events . | . . . Feedback Blocked . | . . . Robot Schematics Acquired . | . . . Robots Built . | . . . Authchips . | . . . Time . | . . . Total Robot Build Rating . | . . . Part Schematics Acquired . | . . . Parts Built . | . . . Authchips . | . . . Time . | . . . Total Part Build Rating . | . . . Parts Repaired . | . . . Time . | . . . Parts Recycled . | . . . Recycled Matter . | . . . Retrieved Matter . | . . . Retrieved Components . | . . . Parts Scanalyzed . | . . . Part Schematics Acquired . | . . . Parts Damaged . | . . . Bothacking | -11 -10 -10 ------------ Run | Yrd Mat Sub Used RIF Installer . | . . . Robots Hacked . | . . . Non-combat . | . . . Combat . | . . . Robot Hacks Applied . | . . . Relay Couplers Released . | . . . Fabnet Peak Effective % . | . . . Robots Rewired . | . . . Allies Hacked . | . . . Hacks Repelled . | . . . Allies | -11 -10 -10 -------- Run | Yrd Mat Sub Total Allies . | . . . Largest Group . | . . . Highest-Rated Group . | . . . Highest-Rated Ally . | . . . Total Orders . | . . . Ally Attacks . | . . . Total Damage . | . . . Kills . | . . . Allies Corrupted . | . . . Allies Melted . | . . . Intel | -11 -10 -10 ------- Run | Yrd Mat Sub Robot Analysis Total 1 | . 1 . Derelict Logs Recovered . | . . . Drone Launches . | . . . Drone Recoveries . | . . . Exploration | -11 -10 -10 ------------- Run | Yrd Mat Sub Turns Passed 1245 | 42 1063 140 Spaces Moved 935 | 41 819 75 Core 1 | 1 . . Treads . | . . . Legs . | . . . Wheels 934 | 40 819 75 Hover . | . . . Flight . | . . . Fastest Speed 50 | 50 80 105 Average Speed 97 | 79 96 113 Slowest Speed 130 | 80 130 130 Overloaded Moves . | . . . Propulsion Burnouts . | . . . Robots Hopped . | . . . Cave-ins Triggered . | . . . Exploration Rate (%) 35 | 2 100 4 Regions Visited 2 Branch Regions 1 Pre-discovered Areas . | . . . Known Exits Taken . | . . . Unknown Exits Taken 2 | 1 1 . Scrap Searched . | . . . Spaces Dug . | . . . Terrain Destroyed . | . . . Melee . | . . . Projectile . | . . . AOE . | . . . Terrain Rammed . | . . . Walls Destroyed . | . . . Machines Disabled . | . . . Actions | -11 -10 -10 --------- Run | Yrd Mat Sub Total 1130 | 47 975 108 Wait 96 | . 81 15 Move 933 | 40 818 75 Hop . | . . . Pick Up 5 | 1 3 1 Fast Attach 10 | 6 2 2 Attach 5 | . 3 2 Detach 1 | . 1 . Swap 8 | . 7 1 Drop 2 | . 2 . Fire 70 | . 58 12 Melee . | . . . Ram . | . . . Kick . | . . . Crush . | . . . Escape Stasis . | . . . Rewire . | . . . Trap . | . . . Miscellaneous . | . . . Route ------- -11/Scrapyard -10/Materials (discovered 6 exits: [*Mat x3] / *Min x2 / [*Sub]) -10/Subcaves History --------- Turn | Location | Event 13 | -11/Scrapyard | Discovered new exit (range 15) 43 | -11/Scrapyard | Entered Materials 53 | -10/Materials | Identified exit to Mines 287 | -10/Materials | Discovered new exit (range 12) 313 | -10/Materials | Build established: Mutant 693 | -10/Materials | Discovered new exit (range 12) 866 | -10/Materials | Discovered new exit (range 8) 1091 | -10/Materials | Discovered new exit (range 12) 1106 | -10/Materials | Entered Subcaves 1146 | -10/Subcaves | Core integrity fell below 50% 1150 | -10/Subcaves | Core integrity fell below 20% 1176 | -10/Subcaves | Lost 3 parts (1p1u1w) 1246 | -10/Subcaves | Destroyed by 9N-57X(R) with Subdweller Machine Gun Last Messages --------------- GOAL=ESCAPE 01141_ Lgt. Armor Plating destroyed. 01144_ Ion Engine destroyed. 01145_ Beam Cannon destroyed. 01148_ 4K-0XN(R) suffers critical hit (Burn). 01149_ 4K-0XN(R) heat short circuits Sub. Optics. 01150_ 4K-0XN(R) suffers critical hit (Burn). 01150_ Broken Sub. Optics melted. 01150_ Sub. Power Source melted. 01150_ 4K-0XN(R) destroyed. 01154_ PS-IOV(R) affixes Scrap Shield Fragment to Scrap Shield. 01156_ Subatomizers dissect the Sub. Monowheel. 01161_ PS-IOV(R) destroyed. 01165_ System corrupted: IFF burst signal emitted. 01165_ Acquired Sub. Monowheel. 01167_ Acquired 84 matter. 01168_ Subatomizers dissect the Disposable Heat Sink. 01169_ Acquired Scrap Shield. 01174_ Acquired Sub. Power Source. 01182_ Subatomizers dissect the Disposable Heat Sink. Map ----- +----------------------------------------------------+ | ?????????????????????????????????????????????????? | | ?????????????????????????????????????????????????? | | ???????????????????????????????????????????????### | | ???????????????????????????????????????????????? | | ???????????????????????????????????????????????? | | ???????????????????????????????????????????????? | | ???????????????????????????????????????????????? | | ????????????????????????????????????????????????# | | ????????????????????????????????????????????????# | | ??????????????????????????????????????????????### | | ?????????????????????????????????????????????##" | | ????????????????????????????????????#######?##" " | | ????????????????????????????????????# " ### "" | | ??????????????????????????#??????????# " "" ### | | ?????????????????????????? ##????????## """" " ##? | | ?????????????????????????? #?????????##""" "" "## | | ?????????????????????????? #??????????## "" # | | ??????????????????????????# #??????????#" "" ## | | ??????????????????????# ?? ##?????????# "" # ##? | | ??????????????????????# ?? ??????????# " #####?? | | ??????????????????????# ?## #??????????## #?????? | | ?????????????????????## ?# #??????##??# ##????? | | ?????????????????????#""?# ######?# ### #????? | | ??????????????????????#"##R ## #?# ##????? | | ????????????????????### " R #?# ##?????? | | ???????????????????## " @## ### #### #??????? | | ???????????????????#""" #####?# ### !###????? | | ???????????????????# """#?????# !&!#????? | | ??????????????????# " #????# & #????? | | ??????????????????# "" ????## # ##### ###????? | | ??????????????????## " ?????#####???# ##?????? | | ???????????????????##" ?????????????# #?????? | | ????????????????????#### ?????????????#####?????? | | ???????????????????????####??????????????????????? | | ?????????????????????????????????????????????????? | | ?????????????????????????????????????????????????? | | ?????????????????????????????????????????????????? | | ?????????????????????????????????????????????????? | | ?????????????????????????????????????????????????? | | ?????????????????????????????????????????????????? | | ?????????????????????????????????????????????????? | | ?????????????????????????????????????????????????? | | ?????????????????????????????????????????????????? | | ?????????????????????????????????????????????????? | | ?????????????????????????????????????????????????? | | ?????????????????????????????????????????????????? | | ?????????????????????????????????????????????????? | | ?????????????????????????????????????????????????? | | ?????????????????????????????????????????????????? | | ?????????????????????????????????????????????????? | +----------------------------------------------------+ Best States ------------- Heat Dissipation 39 Energy Generation 15 Energy Capacity 250 Matter Stores 300 Matter Capacity 500 Sight Range 16 Terrain Scan Density 10 Armor Coverage 150 Evasion (%) 44 Item Schematics ----------------- None Robot Schematics ------------------ None Fabricated ------------ Nothing Alien Tech Used ----------------- None Achievements -------------- None Challenges ------------ None Game ------ Seed FlakQuantumCore Manual? 0 Play Time 00:12:47 Cumulative 290.2 hours Start 2024.04.30 @ 10:39:41 End 2024.04.30 @ 11:32:23 Sessions 1 Manual Loads 0 Difficulty Rogue Special Mode None Game No. 238 Rogue 226 Adventurer 12 Explorer 0 Win Type - Total 1 Types 1/0/0/0/0/0/0/0/0 Lore% 34 Gallery% 51 Achievement% 37 Wizard Run 0 Options --------- Layout 1 ASCII 0 Keyboard 0 Movement Mouse Keybinds 0 Fullscreen 1 Font 32/SmallcapsGlow Map View 77x35 Zoom Use 0% Tactical HUD 1 Map Filters NONE Filters NONE Steam 1 RUN: 56ee415b-535e-4968-9945-5283370b8575